fUSD/lending_fUSD_20240704
["ID","MTS","AMOUNT","RATE_DAILY","PERIOD"]
[331069148,1720059050866,-39993.81006339,0.00021953,2]
[331069150,1720059050877,-11113.05669636,0.00021953,2]
[331069152,1720059050888,-3652.62977879,0.00021953,2]
[331069155,1720059050900,-3208.99999999,0.00021953,2]
[331069157,1720059050912,-512.52,0.00021953,2]
[331069159,1720059050924,-349.60055752,0.00021953,2]
[331069160,1720059050936,-1465.025,0.00021953,2]
[331069162,1720059050947,-2940.98805,0.00021953,2]
[331069164,1720059050959,-877.72825,0.00021953,2]
[331069167,1720059050970,-1514.4342,0.00021953,2]
[331069169,1720059050981,-5858.9,0.00021953,2]
[331069171,1720059050993,-26197.44457343,0.00021953,2]
[331069173,1720059051005,-1950.70425582,0.00021953,2]
[331069175,1720059051014,-151.0,0.00021953,7]
[331069177,1720059051024,-151.0,0.00021953,7]
[331069179,1720059051033,-151.0,0.00021953,7]
[331069181,1720059051042,-151.0,0.00021953,7]
[331069182,1720059051052,-226.415786,0.00021953,7]
[331069184,1720059051061,-783.35,0.00021969,4]
[331069186,1720059051071,-500.0,0.00021969,4]
[331069188,1720059051081,-1387.11,0.00021969,4]
[331069190,1720059051090,-1050.42,0.00021969,4]
[331069192,1720059051100,-615.29,0.00021969,4]
[331069194,1720059051110,-500.0,0.00021969,4]
[331069196,1720059051119,-534.86,0.00021969,4]
[331069198,1720059051129,-500.0,0.00021969,4]
[331069200,1720059051139,-400.0,0.0002197,2]
[331069202,1720059051164,-155.27427709,0.00021976,3]
[331069204,1720059051174,-500.0,0.00021988,4]
[331069206,1720059051183,-500.0,0.00021988,4]
[331069208,1720059051194,-500.0,0.00021988,4]
[331069210,1720059051204,-500.0,0.00021988,4]
[331069212,1720059051214,-500.0,0.00021988,4]
[331069214,1720059051224,-500.0,0.00021988,4]
[331069216,1720059051235,-422.74,0.00021988,4]
[331069217,1720059051245,-500.0,0.00021988,4]
[331069219,1720059051254,-500.0,0.00021988,4]
[331069221,1720059051264,-500.0,0.00021988,4]
[331069223,1720059051273,-500.0,0.00021988,4]
[331069225,1720059051283,-500.0,0.00021988,4]
[331069227,1720059051293,-521.52,0.00021988,4]
[331069229,1720059051302,-500.0,0.00021988,4]
[331069231,1720059051312,-589.01,0.00021988,4]
[331069233,1720059051324,-500.0,0.00021988,4]
[331069235,1720059051333,-995.16,0.00021988,4]
[331069237,1720059051346,-500.0,0.00021988,4]
[331069239,1720059051356,-275.07438112,0.00021988,4]
[331069241,1720059051365,-1823.12,0.00021988,4]
[331069243,1720059051375,-500.0,0.00021988,4]
[331069245,1720059051385,-1015.38,0.00021988,4]
[331069247,1720059051397,-501.3450424,0.00021988,4]
[331069249,1720059051406,-408.54783655,0.00021988,4]
[331069251,1720059051416,-500.0,0.00021988,4]
[331069253,1720059051425,-500.0,0.00021988,4]
[331069255,1720059051434,-663.57,0.00021988,4]
[331069256,1720059051443,-505.04,0.00021988,4]
[331069259,1720059051453,-500.0,0.00021988,4]
[331069260,1720059051463,-500.0,0.00021988,4]
[331069262,1720059051471,-500.0,0.00021988,4]
[331069264,1720059051481,-530.95,0.00021988,4]
[331069266,1720059051491,-601.97238301,0.00021988,4]
[331069268,1720059051501,-500.0,0.00021988,4]
[331069270,1720059051511,-171.47804093,0.00021993,2]
[331069272,1720059051521,-152.2712527,0.00021995,2]
[331069274,1720059051531,-260.39674438,0.00021995,2]
[331069277,1720059051543,-3598.5206157,0.00021995,2]
[331069279,1720059051555,-71.0516255,0.00021995,2]
[331069281,1720059051563,-151.0,0.00021997,7]
[331069283,1720059051572,-151.0,0.00021997,7]
[331069285,1720059051582,-500.0,0.00021997,4]
[331069287,1720059051591,-1314.11,0.00021997,4]
[331069289,1720059051601,-774.83,0.00021997,4]
[331069291,1720059051611,-500.0,0.00021997,4]
[331069293,1720059051620,-1081.72270171,0.00021998,10]
[331069295,1720059051630,-573.94,0.00021998,4]
[331069297,1720059051640,-958.09,0.00021998,4]
[331069299,1720059051657,-843.06947139,0.00021998,4]
[331069301,1720059051676,-1119.58052861,0.00021998,4]
[331069303,1720059051686,-1972.86,0.00021998,4]
[331069305,1720059051696,-500.0,0.00021998,4]
[331069307,1720059051706,-500.0,0.00021998,4]
[331069309,1720059051716,-2240.95,0.00021998,4]
[331069311,1720059051726,-513.49,0.00021998,4]
[331069313,1720059051736,-1774.41,0.00021998,4]
[331069315,1720059051745,-650.02,0.00021998,4]
[331069317,1720059051755,-759.35,0.00021998,4]
[331069318,1720059051766,-500.0,0.00021998,4]
[331069319,1720059051775,-500.0,0.00021998,4]
[331069320,1720059051784,-1183.08,0.00021998,4]
[331069321,1720059051796,-500.0,0.00021998,4]
[331069322,1720059051805,-14348.49731391,0.00021999,2]
[331069323,1720059051817,-526.898,0.00021999,2]
[331069324,1720059051830,-51582.97985781,0.00021999,2]
[331069325,1720059051842,-31166.29367985,0.00021999,2]
[331069326,1720059051852,-534.5503192,0.00021999,4]
[331069327,1720059051862,-517.6,0.00021999,4]
[331069328,1720059051872,-971.09,0.00021999,4]
[331069329,1720059051882,-671.34,0.00021999,4]
[331069330,1720059051892,-500.0,0.00021999,4]
[331069331,1720059051902,-151.0,0.00021999,7]
[331069332,1720059051912,-500.0,0.00021999,4]
[331069333,1720059051922,-500.0,0.00021999,4]
[331069334,1720059051933,-151.0,0.00021999,7]
[331069335,1720059051943,-151.0,0.00021999,7]
[331069336,1720059051952,-275.830834,0.00021999,7]
[331069337,1720059051963,-2000.0,0.00022,3]
[331069338,1720059051973,-2000.0,0.00022,3]
[331069339,1720059051983,-15910.29516095,0.00022,5]
[331069340,1720059052015,-157.67563302,0.0002179,2]
[331069341,1720059052024,-109.17713769,0.0002179,2]
[331069342,1720059052036,-48.49849533,0.0002179,2]
[331069343,1720059052046,-1036.88611002,0.00022,5]
[331069344,1720059052058,-968.85757747,0.00022,5]
[331069345,1720059052071,-1696.79841074,0.00022,5]
[331069346,1720059052081,-1443.99569841,0.00022,2]
[331069348,1720059052093,-1160.0,0.00022,2]
[331069350,1720059052105,-537.16417105,0.00022,2]
[331069352,1720059052117,-404.00768588,0.00022,2]
[331069354,1720059052129,-527.70244466,0.00022,2]
[331069356,1720059052138,-159.62095419,0.00022,2]
[331069358,1720059052148,-257.98438749,0.00022,2]
[331069360,1720059052173,-668.56228941,0.00022,2]
[331069363,1720059052182,-250.0,0.00022,2]
[331069364,1720059052192,-250.0,0.00022,30]
[331069366,1720059052201,-250.08241129,0.00022,2]
[331069368,1720059052210,-257.0,0.00022,2]
[331069370,1720059052220,-2000.0,0.00022,20]
[331069372,1720059052229,-487.0,0.00022,2]
[331069374,1720059052239,-793.14485048,0.00022,2]
[331069376,1720059052248,-173.53,0.00022,2]
[331069378,1720059052258,-151.0,0.00022,7]
[331069380,1720059052267,-194.84612748,0.00022,7]
[331069383,1720059052279,-32.94561652,0.00022,7]
[331069385,1720059052290,-553.01632206,0.00022012,2]
[331069417,1720059052604,-1678.96839643,0.00022012,2]
[331069419,1720059052614,-476.69,0.00022015,2]
[331069421,1720059052623,-419.07,0.00022027,2]
[331069423,1720059052633,-854.2,0.00022027,2]
[331069425,1720059052642,-854.2,0.00022027,2]
[331069427,1720059052660,-419.07,0.00022027,2]
[331069429,1720059052670,-854.2,0.00022027,2]
[331069431,1720059052680,-419.07,0.00022027,2]
[331069433,1720059052689,-854.2,0.00022027,2]
[331069435,1720059052699,-419.07,0.00022027,2]
[331069437,1720059052709,-419.07,0.00022027,2]
[331069439,1720059052718,-854.2,0.00022027,2]
[331069441,1720059052728,-419.07,0.00022027,2]
[331069443,1720059052738,-854.2,0.00022027,2]
[331069445,1720059052748,-854.2,0.00022027,2]
[331069447,1720059052759,-419.07,0.00022027,2]
[331069449,1720059052769,-854.2,0.00022027,2]
[331069451,1720059052780,-256.56,0.00022027,2]
[331069453,1720059052789,-154.24769044,0.00022038,2]
[331069455,1720059052799,-153.4075001,0.0002204,2]
[331069457,1720059052808,-173.500796,0.00022058,2]
[331069459,1720059052818,-500.0,0.00022069,4]
[331069461,1720059052829,-500.0,0.00022069,4]
[331069464,1720059052839,-500.0,0.00022069,4]
[331069466,1720059052849,-510.31,0.00022069,4]
[331069468,1720059052859,-500.0,0.00022069,4]
[331069470,1720059052870,-500.0,0.00022069,4]
[331069472,1720059052880,-500.0,0.00022069,4]
[331069474,1720059052889,-500.0,0.00022069,4]
[331069476,1720059052899,-400.0,0.0002207,2]
[331069478,1720059052921,-400.0,0.0002207,2]
[331069479,1720059052930,-500.0,0.0002208,4]
[331069480,1720059052940,-500.0,0.0002208,4]
[331069481,1720059052950,-500.0,0.0002208,4]
[331069482,1720059052961,-500.0,0.0002208,4]
[331069483,1720059052971,-500.0,0.0002208,4]
[331069484,1720059052981,-500.0,0.0002208,4]
[331069485,1720059052991,-500.0,0.0002208,4]
[331069486,1720059053002,-500.0,0.0002208,4]
[331069488,1720059053011,-500.0,0.0002208,4]
[331069490,1720059053022,-500.0,0.0002208,4]
[331069492,1720059053031,-521.52,0.0002208,4]
[331069494,1720059053041,-16.3762719,0.0002208,4]
[331069496,1720059053058,-483.6237281,0.0002208,4]
[331069499,1720059053068,-589.01,0.0002208,4]
[331069500,1720059053078,-500.0,0.0002208,4]
[331069502,1720059053088,-995.16,0.0002208,4]
[331069505,1720059053098,-500.0,0.0002208,4]
[331069506,1720059053108,-1376.15040184,0.0002208,4]
[331069509,1720059053125,-446.96959816,0.0002208,4]
[331069511,1720059053135,-500.0,0.0002208,4]
[331069513,1720059053145,-138.96514316,0.0002208,4]
[331069516,1720059053171,-876.41485684,0.0002208,4]
[331069518,1720059053181,-500.0,0.0002208,4]
[331069520,1720059053191,-500.0,0.0002208,4]
[331069522,1720059053201,-663.57,0.0002208,4]
[331069524,1720059053210,-295.51514316,0.0002208,4]
[331069526,1720059053223,-209.52485684,0.0002208,4]
[331069528,1720059053234,-500.0,0.0002208,4]
[331069530,1720059053244,-460.47514316,0.0002208,4]
[331069532,1720059053257,-39.52485684,0.0002208,4]
[331069534,1720059053266,-500.0,0.0002208,4]
[331069536,1720059053277,-530.95,0.0002208,4]
[331069538,1720059053287,-500.0,0.0002208,4]
[331069540,1720059053297,-199.39781433,0.00022088,2]
[331069542,1720059053307,-151.84041461,0.00022088,2]
[331069544,1720059053319,-154.24769044,0.00022088,2]
[331069547,1720059053330,-155.01188455,0.0002209,2]
[331069549,1720059053340,-48.02733923,0.0002209,2]
[331069876,1720059348858,174.57,0.00024724,120]
[331069877,1720059389455,839.58020216,0.00011199,2]
[331069879,1720059410378,228.58998275,0.00011199,2]
[331069880,1720059410410,250.0,0.00011199,2]
[331069881,1720059410442,51.9034279,0.00011199,2]
[331069882,1720059467940,155.0,0.00011199,2]
[331069883,1720059481767,366.59036503,0.00011199,2]
[331069884,1720059503476,451.42826052,0.00011199,2]
[331069904,1720060168163,505.90954686,0.00011199,2]
[331069907,1720060192047,-244.95921842,0.00012214,2]
[331069936,1720060239105,-24.4204995,0.00012214,2]
[331069937,1720060239116,-155.65865461,0.00012273,2]
[331069938,1720060239127,-255.76771742,0.00013574,2]
[331069939,1720060239137,-24.75688154,0.00013574,2]
[331069940,1720060239150,-227.90684329,0.00013574,2]
[331069941,1720060239160,-170.20945996,0.00015,2]
[331069942,1720060239170,-2941.23816752,0.00015,2]
[331069943,1720060239181,-1115.15256667,0.00015,2]
[331069944,1720060239191,-3410.76172381,0.00015,2]
[331069945,1720060239202,-471.0,0.00017008,2]
[331069946,1720060239213,-184.94868566,0.00018,2]
[331069947,1720060239223,-271.0,0.000181,2]
[331069948,1720060239233,-11483.0,0.000185,3]
[331069949,1720060239244,-200.0,0.00018843,2]
[331069950,1720060239255,-504.79,0.00018878,2]
[331069951,1720060239266,-8519.14605309,0.000189,5]
[331069952,1720060239279,-2963.85394691,0.000189,5]
[331069953,1720060239290,-2132.37,0.00018951,2]
[331069954,1720060239300,-4140.5,0.00018951,2]
[331069955,1720060239310,-402.92,0.00018953,2]
[331069956,1720060239321,-1250.0,0.00019,2]
[331069957,1720060239331,-287.80289868,0.00019077,2]
[331069958,1720060239341,-471.0,0.00019272,2]
[331069959,1720060239351,-271.97752949,0.00019299,2]
[331069960,1720060239362,-212.25,0.00019449,2]
[331069961,1720060239372,-250.0,0.00019449,2]
[331069962,1720060239382,-83.27615896,0.00019476,2]
[331069963,1720060239396,-166.72384104,0.00019476,2]
[331069964,1720060239406,-366.6,0.00019515,5]
[331069965,1720060239416,-164.9,0.0001957,2]
[331069966,1720060239427,-164.9,0.00019668,2]
[331069967,1720060239436,-174.57,0.0001978,2]
[331069968,1720060239447,-1616.147,0.00019968,2]
[331069969,1720060239457,-351.701,0.00019968,2]
[331069970,1720060239468,-155.0,0.0002,2]
[331069971,1720060239479,-552.21775237,0.0002,2]
[331069972,1720060239490,-8743.52990111,0.0002,3]
[331069973,1720060239504,-1831.0,0.00020173,2]
[331069974,1720060239518,-1632.0,0.000204,3]
[331069975,1720060239528,-400.0,0.000207,7]
[331069976,1720060239539,-900.0,0.000208,7]
[331069977,1720060239549,-162.92030457,0.0002089,2]
[331069978,1720060239559,-258.7944,0.0002089,2]
[331069979,1720060239569,-2500.0,0.0002089,2]
[331069980,1720060239579,-219.47670081,0.00020899,2]
[331069981,1720060239589,-3076.24140332,0.00020899,2]
[331069982,1720060239598,-664.7176,0.000209,2]
[331069983,1720060239608,-219.4767008,0.000209,2]
[331069984,1720060239619,-1400.0,0.000209,7]
[331069985,1720060239628,-7500.0,0.000209,2]
[331069986,1720060239639,-315.29085378,0.000209,2]
[331069987,1720060239649,-2162.33465021,0.00020903,2]
[331069989,1720060239659,-177.66479859,0.00020903,2]
[331069991,1720060239671,-350.22,0.00020951,2]
[331069992,1720060239682,-10312.056658,0.0002098,3]
[331069994,1720060239691,-164.68,0.0002098,2]
[331069996,1720060239702,-164.68,0.0002098,2]
[331069998,1720060239717,-27030.66698781,0.0002099,3]
[331070009,1720060241110,-645.09499996,0.0002099,3]
[331070010,1720060241124,-750.30343744,0.0002099,3]
[331070011,1720060241523,-489.67118341,0.00019354,2]
[331070012,1720060241533,-212126.01187512,0.0002099,3]
[331070013,1720060241545,-1089.89667124,0.0002099,3]
[331070014,1720060241557,-1259.96086,0.0002099,3]
[331070015,1720060241569,-35523.59493343,0.0002099,3]
[331070016,1720060241581,-164.68,0.0002099,2]
[331070017,1720060241591,-164.68,0.0002099,2]
[331070018,1720060241600,-154.56,0.0002099,2]
[331070019,1720060241610,-300.0,0.00020999,2]
[331070020,1720060241619,-500.0,0.00020999,2]
[331070021,1720060241628,-616.0660981,0.00020999,2]
[331070022,1720060241638,-378.77484812,0.00020999,2]
[331070023,1720060241647,-250.0,0.00021,30]
[331070024,1720060241656,-172.98635439,0.00021,2]
[331070025,1720060241665,-250.0,0.00021,30]
[331070026,1720060241677,-1300.0,0.00021,2]
[331070027,1720060241687,-299.7934,0.00021,2]
[331070028,1720060241696,-299.0653,0.00021,2]
[331070029,1720060241710,-24950.81977237,0.00021,2]
[331070030,1720060241723,-10379.58610411,0.00021,2]
[331070031,1720060241734,-486.97422408,0.00021,2]
[331070032,1720060241749,-529.37778124,0.00021,2]
[331070033,1720060245504,-4708.75502392,0.00021,2]
[331070057,1720060245935,-2942.80104,0.00021,2]
[331070058,1720060245947,-2937.07842,0.00021,2]
[331070063,1720060435788,482.02404483,9e-05,2]
[331070064,1720060435824,2341.07369236,9e-05,2]
[331070065,1720060435851,1232.64343531,9e-05,2]
[331070066,1720060471183,2248.70123865,6.94e-05,2]
[331070067,1720060531540,2470.433754,8.412e-05,2]
[331070068,1720060537399,1256.02403144,8.412e-05,2]
[331070074,1720060733563,3079.6787139,0.00010196,2]
[331070076,1720060767603,1903.03082168,0.00011199,2]
[331070077,1720060780991,691.49791,0.00011199,2]
[331070111,1720061432019,-300.0,0.000137,5]
[331070114,1720061432028,-160.90800127,0.000137,2]
[331070115,1720061432038,-187.69030344,0.000138,2]
[331070117,1720061432047,-600.0,0.000138,5]
[331070120,1720061432056,-300.0,0.00013898,2]
[331070123,1720061432065,-20193.15429762,0.00013899,2]
[331070153,1720061432549,-17429.80070896,0.00013899,2]
[331070155,1720061432562,-11665.47849216,0.00013899,2]
[331070157,1720061432571,-248.43113677,0.000139,2]
[331070159,1720061432580,-1517.26904379,0.000139,2]
[331070160,1720061432592,-1661.1859856,0.000139,2]
[331070161,1720061432604,-1419.27070335,0.000139,2]
[331070162,1720061432613,-2363.00932296,0.000139,2]
[331070163,1720061432624,-187.69030343,0.000139,2]
[331070164,1720061432634,-1000.0,0.000139,5]
[331070165,1720061432644,-173.06446408,0.000139,2]
[331070166,1720061432654,-608.57932202,0.000139,2]
[331070167,1720061432663,-150.0,0.00013973,2]
[331070168,1720061432672,-313.47,0.0001399,3]
[331070169,1720061432682,-264.02832776,0.00013999,2]
[331070170,1720061432691,-376.61779205,0.00013999,2]
[331070171,1720061432700,-6919.14760147,0.00014,2]
[331070173,1720061437947,-250479.00657782,0.00014,2]
[331070179,1720061438571,-1061.5899,0.00014,2]
[331070180,1720061438583,-11800.0,0.00014,2]
[331070181,1720061438595,-902.80909561,0.00014,2]
[331070182,1720061438608,-16125.29401725,0.00014,2]
[331070183,1720061438619,-412.0,0.00014,2]
[331070185,1720061439321,-1637.15775222,0.00014,2]
[331070188,1720061440747,-955.80499545,0.0001393,2]
[331070189,1720061440760,-37.86347455,0.0001393,2]
[331070190,1720061440770,-86208.65501704,0.00014,2]
[331070191,1720061440782,-71007.6315129,0.00014,2]
[331070192,1720061440793,-650.0,0.00014,2]
[331070193,1720061443288,-268.16498115,0.00014,2]
[331070212,1720061444156,-497.49827071,0.00014,2]
[331070213,1720061446330,-905.6740569,0.00014,2]
[331070214,1720061521662,-200.0,0.000138,5]
[331070215,1720061521717,-417.98,0.000139,5]
[331070216,1720061521755,-82.02,0.000139,5]
[331070217,1720061521786,-466.9034917,0.00013988,2]
[331070218,1720061521815,-300.0,0.00013999,2]
[331070219,1720061521849,-2284.4730754,0.00014,2]
[331070220,1720061521889,-2969.78277421,0.00014,2]
[331070221,1720061521935,-2750.73815172,0.00014,2]
[331070222,1720061521980,-2830.42802311,0.00014,2]
[331070223,1720061522022,-2350.28,0.00014,2]
[331070224,1720061522061,-3381.12263656,0.00014,2]
[331070225,1720061522123,-2934.55191123,0.00014,2]
[331070226,1720061522162,-2483.81197689,0.00014,2]
[331070227,1720061522205,-2456.17738953,0.00014,2]
[331070228,1720061522250,-969.38,0.00014,2]
[331070229,1720061522294,-2885.05832986,0.00014,2]
[331070230,1720061522332,-2587.56737628,0.00014,2]
[331070231,1720061522375,-2908.25852275,0.00014,2]
[331070232,1720061522417,-3106.24542799,0.00014,2]
[331070237,1720061734408,-219.82193953,0.000139,2]
[331070238,1720061734434,-215.05487131,0.00013988,2]
[331070239,1720061734459,-173.06446406,0.00013988,2]
[331070240,1720061734484,-5558.34261483,0.00013988,2]
[331070241,1720061734507,-344.22835006,0.00013988,2]
[331070242,1720061734531,-171.47804093,0.00013988,2]
[331070243,1720061734555,-2817.06466371,0.0001399,2]
[331070244,1720061734577,-750.0,0.0001399,3]
[331070245,1720061734600,-653.44,0.0001399,3]
[331070246,1720061734623,-544.53,0.0001399,3]
[331070247,1720061734647,-453.78,0.0001399,3]
[331070248,1720061734669,-378.15,0.0001399,3]
[331070249,1720061734693,-315.12,0.0001399,3]
[331070250,1720061734717,-262.6,0.0001399,3]
[331070251,1720061734740,-218.84,0.0001399,3]
[331070252,1720061734763,-182.36,0.0001399,3]
[331070253,1720061734786,-151.97,0.0001399,3]
[331070254,1720061734808,-759.87,0.0001399,3]
[331070255,1720061734835,-545830.28505557,0.00014,2]
[331070258,1720062084130,23014.63424881,0.00011199,2]
[331070263,1720062263302,10663.61829733,0.00011199,2]
[331070264,1720062326124,704.15,0.00011162,2]
[331070265,1720062326779,155.0,0.000112,2]
[331070269,1720062369687,3074.13216953,0.00011199,2]
[331070283,1720062444235,168.1,0.0001034,2]
[331070286,1720062508035,29077.75483188,0.00011199,2]
[331070287,1720062551699,3074.13216953,0.00011199,2]
[331070295,1720062560804,1630.02206846,0.00011199,2]
[331070296,1720062634647,-220.7400091,0.00012273,2]
[331070298,1720062634657,-440.79159944,0.00012302,2]
[331070300,1720062634666,-4469.85308741,0.00012314,2]
[331070301,1720062634675,-155.46014466,0.00012314,2]
[331070302,1720062634684,-155.39524422,0.00012314,2]
[331070303,1720062634693,-300.0,0.00012868,2]
[331070304,1720062634702,-23890.0,0.00012869,2]
[331070305,1720062634712,-274.87242859,0.00013088,2]
[331070306,1720062634721,-25112.03,0.00013089,2]
[331070307,1720062634732,-174.81,0.00013118,2]
[331070308,1720062634741,-150.0,0.00013127,2]
[331070309,1720062634751,-250.0,0.00013274,2]
[331070310,1720062634760,-689.4,0.00013329,2]
[331070311,1720062634770,-704.15,0.00013426,2]
[331070312,1720062634780,-301.19242549,0.00013472,2]
[331070313,1720062634789,-2163.43768392,0.00013516,2]
[331070314,1720062634799,-4140.5,0.00013574,2]
[331070315,1720062634808,-3072.28850801,0.00013574,2]
[331070316,1720062634818,-239.23853664,0.00013574,2]
[331070317,1720062634827,-416.35251911,0.00013574,2]
[331070318,1720062634838,-10277.0,0.00013584,2]
[331070319,1720062634847,-2751.0,0.00013699,2]
[331070320,1720062634855,-10000.0,0.00013699,2]
[331070321,1720062634864,-212.25,0.00013699,2]
[331070322,1720062634873,-200.0,0.00013699,2]
[331070323,1720062634883,-250.0,0.00013725,2]
[331070324,1720062634892,-613.46,0.00013725,2]
[331070325,1720062634902,-981.87,0.00013725,2]
[331070326,1720062634911,-963.20197168,0.00013759,2]
[331070327,1720062634921,-1263.5888371,0.00013759,2]
[331070328,1720062634930,-919.0908096,0.00013799,2]
[331070329,1720062634940,-600.0,0.000138,5]
[331070330,1720062634950,-385.31605884,0.000138,2]
[331070331,1720062634960,-208.2,0.00013807,2]
[331070332,1720062634968,-417.2870531,0.00013845,2]
[331070333,1720062634978,-1271.27601338,0.00013849,2]
[331070334,1720062634987,-659.48,0.0001385,3]
[331070335,1720062634996,-67298.56661127,0.0001386,2]
[331070336,1720062635005,-1483.43938,0.0001386,2]
[331070337,1720062635015,-895.86757367,0.00013899,2]
[331070338,1720062635024,-372.2297813,0.00013899,2]
[331070339,1720062635034,-499.99,0.000139,2]
[331070340,1720062635043,-299.99,0.000139,2]
[331070341,1720062635052,-183.06532134,0.000139,2]
[331070342,1720062635061,-160.8988254,0.000139,2]
[331070343,1720062635071,-596.11426044,0.000139,2]
[331070344,1720062635080,-1300.0,0.000139,5]
[331070366,1720062635089,-322.6471014,0.000139,2]
[331070370,1720062635322,-2132.37,0.00013935,2]
[331070372,1720062635334,-2810.54801701,0.00013937,2]
[331070375,1720062635343,-220.87561832,0.00013937,2]
[331070376,1720062635352,-220.8756183,0.00013963,2]
[331070378,1720062635361,-511.55,0.00013973,3]
[331070381,1720062635371,-220.8756183,0.00013988,2]
[331070382,1720062635379,-208.08516281,0.0001399,2]
[331070384,1720062635389,-3867.59,0.00013998,2]
[331070386,1720062635398,-1000.0,0.00013999,2]
[331070389,1720062635407,-8204.02,0.00013999,2]
[331070390,1720062635417,-2203.73627997,0.00013999,2]
[331070392,1720062635426,-721.36501093,0.00013999,2]
[331070394,1720062635435,-269.66585557,0.00013999,2]
[331070396,1720062635445,-108282.78199887,0.00013999,2]
[331070398,1720062635458,-11038.91143297,0.00013999,2]
[331070399,1720062635472,-15925.18453886,0.00013999,2]
[331070400,1720062635484,-1798.17271157,0.00013999,2]
[331070401,1720062635495,-597.59958667,0.00013999,2]
[331070402,1720062635508,-361.36554768,0.00013999,2]
[331070403,1720062635519,-401.44091038,0.00013999,2]
[331070404,1720062635530,-455.94522447,0.00013999,2]
[331070405,1720062635542,-29057.07363301,0.00013999,2]
[331070406,1720062635750,-7258.35536997,0.00013999,2]
[331070407,1720062635762,-1336.23099749,0.00013999,2]
[331070408,1720062635774,-10267.24643384,0.00013999,2]
[331070409,1720062635785,-1722.63024292,0.00013999,2]
[331070410,1720062635797,-750.93154305,0.00013999,2]
[331070411,1720062635867,270.35493741,0.00011199,2]
[331070412,1720062638182,-268.10070295,0.00013989,2]
[331070413,1720062638192,-21988.31259369,0.00013999,2]
[331070421,1720062638619,-3533.5470046,0.00013999,2]
[331070423,1720062638631,-6768.92623155,0.00013999,2]
[331070424,1720062638643,-2128.76516817,0.00013999,2]
[331070426,1720062638654,-701.89106013,0.00013999,2]
[331070427,1720062638666,-15510.34784358,0.00013999,2]
[331070430,1720062640506,-64193.40427127,0.00013999,2]
[331070432,1720062640998,-2373.13777452,0.00013999,2]
[331070433,1720062641010,-356.30541684,0.00013999,2]
[331070434,1720062641022,-1296.27999969,0.00013999,2]
[331070439,1720062644330,-387.24545072,0.00013807,2]
[331070440,1720062644341,-20798.7590216,0.00013999,2]
[331070441,1720062644350,-700800.0244678,0.00014,2]
[331070442,1720062644359,-27003.25544576,0.00014088,2]
[331070443,1720062644370,-7099.79651834,0.00014088,2]
[331070444,1720062644379,-1139.77776804,0.00014099,2]
[331070445,1720062644388,-660.33561149,0.00014099,2]
[331070446,1720062644397,-324.0,0.00014113,2]
[331070447,1720062644407,-218.4586013,0.00014499,2]
[331070448,1720062644416,-209.22550452,0.00014499,2]
[331070449,1720062644425,-2810.54801697,0.00014751,2]
[331070450,1720062644434,-919.09080953,0.00014774,2]
[331070451,1720062644444,-181.02440104,0.00014849,2]
[331070452,1720062644453,-161.12945359,0.00014849,2]
[331070453,1720062644465,-202.10679351,0.00014849,2]
[331070454,1720062644475,-366.62612521,0.00014849,2]
[331070455,1720062644484,-227.14852012,0.00014849,2]
[331070456,1720062644493,-365.26443049,0.00014849,2]
[331070458,1720062644503,-158.31418936,0.00014849,2]
[331070460,1720062644512,-161.69161952,0.00014849,2]
[331070462,1720062644521,-483.56532851,0.00014899,2]
[331070464,1720062644530,-188.75280471,0.00014899,2]